[Event "19th IPCA WCC 2019"]
[Site "Ruzomberok"]
[Date "2019.07.04"]
[Round "7.2"]
[White "Alekseev, Mikhail"]
[Black "Tebenkov, Vladislav"]
[Result "0-1"]
[ECO "C50"]
[WhiteElo "1869"]
[BlackElo "2096"]
[Annotator "NA"]
[PlyCount "96"]
[EventDate "2019.06.28"]
[EventType "swiss"]
[EventCountry "SVK"]
[SourceTitle "playchess.com"]
[Source "ChessBase"]
[SourceQuality "1"]
[TimeControl "5400+30"]

1. e4 {[%emt 0:00:00]} e5 {[%emt 0:00:00]} 2. Nf3 {[%emt 0:00:00]} Nc6 {[%emt 0:00:00]} 3. Bc4 {[%emt 0:00:02]} Nf6 {[%emt 0:00:00]} 4. d3 {[%emt 0:00:19]} Bc5 {[%emt 0:00:05]} 5. O-O {[%emt 0:00:29]} d6 {[%emt 0:00:29]} 6. c3 {[%emt 0:00:51]} a6 {[%emt 0:03:19]} 7. a4 {[%emt 0:01:12]} h6 {[%emt 0:05:06]} 8. h3 {[%emt 0:09:46]} O-O {[%emt 0:02:55]} 9. Re1 {[%emt 0:05:16]} Be6 {[%emt 0:03:54]} 10. Bb3 {[%emt 0:07:46]} Re8 {[%emt 0:09:10]} 11. Bxe6 {[%emt 0:06:48]} fxe6 {[%emt 0:00:49]} 12. d4 {[%emt 0:01:13]} exd4 {[%emt 0:02:35]} 13. cxd4 {[%emt 0:00:18]} Bb6 {[%emt 0:03:16]} 14. Nc3 {[%emt 0:04:03]} e5 {[%emt 0:01:17]} 15. dxe5 {[%emt 0:02:28]} dxe5 {[%emt 0:00:16]} 16. Nd5 {[%emt 0:08:58]} Nxd5 {[%emt 0:02:29]} 17. Qxd5+ {[%emt 0:00:41]} Qxd5 {[%emt 0:04:55]} 18. exd5 {[%emt 0:00:02]} Nb4 {[%emt 0:03:36]} 19. Rxe5 {[%emt 0:05:07]} Bxf2+ {[%emt 0:02:51]} 20. Kf1 {[%emt 0:00:57]} Rxe5 {[%emt 0:02:43]} 21. Nxe5 {[%emt 0:00:04]} Bg3 {[%emt 0:00:49]} 22. Nf3 {[%emt 0:01:18]} Nxd5 {[%emt 0:02:39]} 23. Bd2 {[%emt 0:00:26]} Re8 {[%emt 0:02:03]} 24. Rc1 {[%emt 0:02:04]} Re4 {[%emt 0:03:09]} 25. b3 {[%emt 0:01:17]} c6 {[%emt 0:04:33]} 26. a5 {[%emt 0:02:58]} Bf4 {[%emt 0:03:11]} 27. Rc4 {[%emt 0:06:09]} Ne3+ {[%emt 0:04:25]} 28. Bxe3 {[%emt 0:00:10]} Rxc4 {[%emt 0:00:03]} 29. bxc4 {[%emt 0:00:35]} Bxe3 {[%emt 0:00:04]} 30. Ke2 {[%emt 0:02:51]} Bc5 {[%emt 0:00:09]} 31. Nd2 {[%emt 0:00:26]} Bb4 {[%emt 0:05:53]} 32. Nb3 {[%emt 0:00:21]} Kf7 {[%emt 0:01:21]} 33. Kd3 {[%emt 0:00:45]} Ke6 {[%emt 0:02:23]} 34. Kd4 {[%emt 0:00:33]} Kd6 {[%emt 0:01:05]} 35. Ke4 {[%emt 0:01:13]} c5 {[%emt 0:00:41]} 36. g4 {[%emt 0:05:44]} Kc6 {[%emt 0:00:24]} 37. h4 {[%emt 0:01:02]} b6 {[%emt 0:02:19]} 38. axb6 {[%emt 0:00:47]} a5 {[%emt 0:01:32]} 39. Nc1 {[%emt 0:04:34]} a4 {[%emt 0:03:06]} 40. Na2 {[%emt 0:00:46]} Be1 {[%emt 0:00:36]} 41. b7 {[%emt 0:03:21]} Kxb7 {[%emt 0:00:06]} 42. Kd5 {[%emt 0:00:13]} Kb6 {[%emt 0:01:27]} 43. h5 {[%emt 0:02:07]} a3 {[%emt 0:00:36]} 44. Ke4 {[%emt 0:02:49]} Bh4 {[%emt 0:05:27]} 45. Kd3 {[%emt 0:01:38]} Bf6 {[%emt 0:00:34]} 46. Kc2 {[%emt 0:01:23]} Bb2 {[%emt 0:00:24]} 47. Kb3 {[%emt 0:02:19]} Kc6 {[%emt 0:00:36]} 48. Nc3 {[%emt 0:00:28]} Bxc3 {[%emt 0:00:21]} 0-1

[Event "19th IPCA WCC 2019"]
[Site "Ruzomberok"]
[Date "2019.07.04"]
[Round "7.3"]
[White "Yarmonov, Igor"]
[Black "Valenta, Vit"]
[Result "1-0"]
[ECO "E73"]
[WhiteElo "2389"]
[BlackElo "2147"]
[Annotator "NA"]
[PlyCount "235"]
[EventDate "2019.06.28"]
[EventType "swiss"]
[EventCountry "SVK"]
[SourceTitle "playchess.com"]
[Source "ChessBase"]
[SourceQuality "1"]
[TimeControl "5400+30"]

1. d4 {[%emt 0:00:00]} Nf6 {[%emt 0:00:00]} 2. c4 {[%emt 0:00:00]} g6 {[%emt 0:00:00]} 3. Nc3 {[%emt 0:00:17]} Bg7 {[%emt 0:00:00]} 4. e4 {[%emt 0:00:22]} d6 {[%emt 0:00:00]} 5. Be2 {[%emt 0:00:41]} O-O {[%emt 0:00:41]} 6. Bg5 {[%emt 0:00:46]} h6 {[%emt 0:01:29]} 7. Be3 {[%emt 0:00:05]} Nbd7 {[%emt 0:00:25]} 8. Qd2 {[%emt 0:04:59]} Kh7 {[%emt 0:00:14]} 9. h4 {[%emt 0:00:20]} e5 {[%emt 0:00:13]} 10. h5 {[%emt 0:00:27]} g5 {[%emt 0:00:21]} 11. d5 {[%emt 0:01:07]} Nc5 {[%emt 0:00:20]} 12. f3 {[%emt 0:00:05]} a5 {[%emt 0:03:46]} 13. b3 {[%emt 0:01:38]} b6 {[%emt 0:01:31]} 14. Bd1 {[%emt 0:00:32]} Ng8 {[%emt 0:02:23]} 15. g4 {[%emt 0:00:07]} Bd7 {[%emt 0:06:39]} 16. Nge2 {[%emt 0:00:16]} Ne7 {[%emt 0:03:40]} 17. Ng3 {[%emt 0:00:28]} Bf6 {[%emt 0:01:54]} 18. O-O {[%emt 0:00:25]} Qb8 {[%emt 0:06:24]} 19. Be2 {[%emt 0:00:24]} Qb7 {[%emt 0:07:57]} 20. Rfb1 {[%emt 0:01:30]} Rfb8 {[%emt 0:01:00]} 21. Nf1 {[%emt 0:01:45]} Qc8 {[%emt 0:02:24]} 22. Qe1 {[%emt 0:02:37]} Qd8 {[%emt 0:03:01]} 23. Nd2 {[%emt 0:00:33]} Nc8 {[%emt 0:03:08]} 24. a3 {[%emt 0:02:02]} Be7 {[%emt 0:05:19]} 25. b4 {[%emt 0:02:46]} Nb7 {[%emt 0:00:13]} 26. Nb3 {[%emt 0:01:43]} Be8 {[%emt 0:03:52]} 27. Bd2 {[%emt 0:01:02]} axb4 {[%emt 0:08:27]} 28. axb4 {[%emt 0:00:21]} Bf8 {[%emt 0:00:14]} 29. Be3 {[%emt 0:02:25]} Kg8 {[%emt 0:03:00]} 30. Qd2 {[%emt 0:00:42]} Ne7 {[%emt 0:02:59]} 31. Qb2 {[%emt 0:08:12]} f6 {[%emt 0:04:25]} 32. Rc1 {[%emt 0:11:46]} Rxa1 {[%emt 0:02:17]} 33. Rxa1 {[%emt 0:01:02]} Ra8 {[%emt 0:00:18]} 34. Ra3 {[%emt 0:04:39]} Qb8 {[%emt 0:00:59]} 35. Qa2 {[%emt 0:06:55]} Rxa3 {[%emt 0:00:12]} 36. Qxa3 {[%emt 0:00:38]} Nc8 {[%emt 0:00:35]} 37. Kf2 {[%emt 0:03:43]} Qa7 {[%emt 0:01:43]} 38. Qb2 {[%emt 0:00:26]} Be7 {[%emt 0:02:59]} 39. Ke1 {[%emt 0:00:35]} Kf8 {[%emt 0:00:26]} 40. Kd2 {[%emt 0:01:41]} Bd7 {[%emt 0:00:53]} 41. Kc1 {[%emt 0:01:01]} Ke8 {[%emt 0:00:59]} 42. Nd2 {[%emt 0:01:10]} Kd8 {[%emt 0:02:36]} 43. Kb1 {[%emt 0:00:28]} Bf8 {[%emt 0:00:57]} 44. Qb3 {[%emt 0:00:47]} Be8 {[%emt 0:00:50]} 45. Kb2 {[%emt 0:00:08]} Bd7 {[%emt 0:01:16]} 46. Bd3 {[%emt 0:00:11]} Be8 {[%emt 0:00:30]} 47. Qd1 {[%emt 0:00:28]} Bd7 {[%emt 0:00:27]} 48. Bc2 {[%emt 0:00:43]} Qa6 {[%emt 0:01:40]} 49. Ba4 {[%emt 0:02:02]} Bxa4 {[%emt 0:00:14]} 50. Qxa4 {[%emt 0:00:35]} Qxa4 {[%emt 0:00:02]} 51. Nxa4 {[%emt 0:00:03]} Kd7 {[%emt 0:00:59]} 52. Nb3 {[%emt 0:01:05]} Be7 {[%emt 0:03:02]} 53. Nc3 {[%emt 0:02:15]} Bf8 {[%emt 0:00:53]} 54. Ka3 {[%emt 0:00:24]} Na7 {[%emt 0:03:40]} 55. Ka4 {[%emt 0:00:22]} Be7 {[%emt 0:01:56]} 56. Nc1 {[%emt 0:08:50]} Bf8 {[%emt 0:00:46]} 57. Nd3 {[%emt 0:00:46]} Be7 {[%emt 0:00:19]} 58. Ne2 {[%emt 0:01:39]} Bf8 {[%emt 0:02:06]} 59. Ng3 {[%emt 0:00:41]} Be7 {[%emt 0:00:49]} 60. Nf5 {[%emt 0:00:12]} Bf8 {[%emt 0:00:04]} 61. Bf2 {[%emt 0:01:14]} Kd8 {[%emt 0:00:40]} 62. Nc1 {[%emt 0:00:53]} Kd7 {[%emt 0:00:11]} 63. Nb3 {[%emt 0:01:18]} Kc8 {[%emt 0:00:32]} 64. Ka3 {[%emt 0:08:41]} Kd7 {[%emt 0:00:12]} 65. Kb2 {[%emt 0:00:35]} Nc8 {[%emt 0:00:52]} 66. Nd2 {[%emt 0:00:16]} Nd8 {[%emt 0:01:33]} 67. Nb1 {[%emt 0:00:12]} Nb7 {[%emt 0:00:44]} 68. Nc3 {[%emt 0:00:07]} Na7 {[%emt 0:00:27]} 69. Kb3 {[%emt 0:00:44]} Kc8 {[%emt 0:00:51]} 70. Na4 {[%emt 0:00:35]} Kd7 {[%emt 0:00:45]} 71. Bg1 {[%emt 0:08:08]} Nc8 {[%emt 0:00:09]} 72. Be3 {[%emt 0:01:44]} Kd8 {[%emt 0:00:55]} 73. Nb2 {[%emt 0:02:27]} Kd7 {[%emt 0:00:16]} 74. Ka4 {[%emt 0:00:25]} Na7 {[%emt 0:00:37]} 75. Nd3 {[%emt 0:00:28]} Ke8 {[%emt 0:01:43]} 76. Nc1 {[%emt 0:00:56]} Kd8 {[%emt 0:00:38]} 77. Nb3 {[%emt 0:00:02]} Kd7 {[%emt 0:00:12]} 78. Bf2 {[%emt 0:00:18]} Kc8 {[%emt 0:01:10]} 79. Ne3 {[%emt 0:03:48]} Kd7 {[%emt 0:00:49]} 80. Nc2 {[%emt 0:00:17]} Be7 {[%emt 0:02:08]} 81. Ne1 {[%emt 0:00:13]} Bf8 {[%emt 0:00:44]} 82. Nd3 {[%emt 0:00:03]} c5 {[%emt 0:01:08]} 83. dxc6+ {[%emt 0:01:10]} Kxc6 {[%emt 0:00:01]} 84. Na5+ {[%emt 0:01:03]} Kc7 {[%emt 0:02:43]} 85. Nxb7 {[%emt 0:00:47]} Kxb7 {[%emt 0:00:01]} 86. c5 {[%emt 0:00:38]} dxc5 {[%emt 0:00:47]} 87. bxc5 {[%emt 0:00:04]} b5+ {[%emt 0:01:04]} 88. Ka5 {[%emt 0:00:44]} Be7 {[%emt 0:00:07]} 89. c6+ {[%emt 0:00:43]} Nxc6+ {[%emt 0:00:09]} 90. Kxb5 {[%emt 0:00:35]} Kc7 {[%emt 0:00:12]} 91. Nc1 {[%emt 0:00:57]} Kd7 {[%emt 0:00:22]} 92. Ne2 {[%emt 0:00:21]} Bf8 {[%emt 0:01:03]} 93. Ng3 {[%emt 0:00:29]} Nd8 {[%emt 0:00:43]} 94. Bb6 {[%emt 0:01:15]} Ne6 {[%emt 0:00:14]} 95. Nf5 {[%emt 0:00:33]} Ke8 {[%emt 0:01:10]} 96. Kc6 {[%emt 0:00:07]} Kf7 {[%emt 0:00:09]} 97. Kd7 {[%emt 0:00:42]} Nf4 {[%emt 0:01:05]} 98. Bc7 {[%emt 0:00:15]} Ne2 {[%emt 0:00:31]} 99. Bd6 {[%emt 0:00:27]} Bg7 {[%emt 0:00:00]} 100. Bc5 {[%emt 0:00:09]} Nf4 {[%emt 0:00:27]} 101. Nd6+ {[%emt 0:00:45]} Kf8 {[%emt 0:00:24]} 102. Nb7+ {[%emt 0:00:43]} Kf7 {[%emt 0:00:02]} 103. Nd8+ {[%emt 0:00:09]} Kg8 {[%emt 0:00:10]} 104. Ke8 {[%emt 0:00:50]} Nd3 {[%emt 0:00:24]} 105. Ba3 {[%emt 0:00:27]} Ne1 {[%emt 0:00:10]} 106. Nc6 {[%emt 0:00:11]} Nxf3 {[%emt 0:00:18]} 107. Ne7+ {[%emt 0:00:14]} Kh7 {[%emt 0:00:02]} 108. Kf7 {[%emt 0:00:11]} Nd2 {[%emt 0:00:32]} 109. Nf5 {[%emt 0:01:04]} Bh8 {[%emt 0:00:21]} 110. Ng3 {[%emt 0:00:20]} Nf3 {[%emt 0:00:38]} 111. Bc5 {[%emt 0:00:16]} Nh2 {[%emt 0:00:17]} 112. Nf5 {[%emt 0:00:25]} Nf3 {[%emt 0:00:44]} 113. Bf8 {[%emt 0:01:27]} Nd2 {[%emt 0:00:30]} 114. Ng3 {[%emt 0:00:46]} Nf3 {[%emt 0:00:29]} 115. Bc5 {[%emt 0:00:20]} Nh2 {[%emt 0:01:03]} 116. Nf5 {[%emt 0:00:04]} Nxg4 {[%emt 0:00:06]} 117. Bg1 {[%emt 0:00:08]} Bg7 {[%emt 0:00:39]} 118. Nxg7 {[%emt 0:00:23]} 1-0

[Event "19th IPCA WCC 2019"]
[Site "Ruzomberok"]
[Date "2019.07.04"]
[Round "7.4"]
[White "Glazar, Domagoj"]
[Black "Nowak, Lukasz"]
[Result "0-1"]
[ECO "A45"]
[WhiteElo "2153"]
[BlackElo "2267"]
[Annotator "NA"]
[PlyCount "122"]
[EventDate "2019.06.28"]
[EventType "swiss"]
[EventCountry "SVK"]
[SourceTitle "playchess.com"]
[Source "ChessBase"]
[SourceQuality "1"]
[TimeControl "5400+30"]

1. d4 {[%emt 0:00:00]} Nf6 {[%emt 0:00:00]} 2. Bf4 {[%emt 0:00:00]} d5 {[%emt 0:00:24]} 3. e3 {[%emt 0:01:30]} e6 {[%emt 0:00:42]} 4. Bd3 {[%emt 0:00:59]} Bd6 {[%emt 0:00:32]} 5. Nf3 {[%emt 0:00:52]} Bxf4 {[%emt 0:04:00]} 6. exf4 {[%emt 0:03:19]} Qd6 {[%emt 0:01:46]} 7. Qc1 {[%emt 0:01:19]} b6 {[%emt 0:02:54]} 8. O-O {[%emt 0:00:46]} O-O {[%emt 0:01:27]} 9. Re1 {[%emt 0:04:20]} Ba6 {[%emt 0:00:18]} 10. Bxa6 {[%emt 0:00:21]} Nxa6 {[%emt 0:00:05]} 11. Qd2 {[%emt 0:02:47]} c5 {[%emt 0:02:25]} 12. c3 {[%emt 0:06:53]} Nb8 {[%emt 0:07:04]} 13. g3 {[%emt 0:02:00]} Nc6 {[%emt 0:00:29]} 14. Qe3 {[%emt 0:02:33]} Rfc8 {[%emt 0:01:42]} 15. Nbd2 {[%emt 0:00:43]} Rab8 {[%emt 0:07:32]} 16. Kg2 {[%emt 0:05:50]} Ne7 {[%emt 0:05:01]} 17. Nh4 {[%emt 0:06:03]} cxd4 {[%emt 0:02:33]} 18. Qxd4 {[%emt 0:00:25]} Qc5 {[%emt 0:00:33]} 19. Nb3 {[%emt 0:02:42]} Qxd4 {[%emt 0:00:54]} 20. Nxd4 {[%emt 0:00:13]} g6 {[%emt 0:00:24]} 21. Nhf3 {[%emt 0:03:23]} b5 {[%emt 0:01:17]} 22. Rac1 {[%emt 0:02:52]} Ne4 {[%emt 0:07:13]} 23. Ne5 {[%emt 0:03:47]} Rc7 {[%emt 0:01:34]} 24. f3 {[%emt 0:02:52]} Nd6 {[%emt 0:00:33]} 25. h4 {[%emt 0:02:20]} a5 {[%emt 0:03:55]} 26. Nd3 {[%emt 0:03:02]} Nc6 {[%emt 0:07:09]} 27. Ne2 {[%emt 0:12:58]} Rbc8 {[%emt 0:01:42]} 28. a3 {[%emt 0:04:30]} Nb8 {[%emt 0:03:56]} 29. h5 {[%emt 0:02:29]} Nd7 {[%emt 0:01:31]} 30. hxg6 {[%emt 0:00:24]} hxg6 {[%emt 0:00:07]} 31. Nd4 {[%emt 0:01:22]} Nc5 {[%emt 0:00:43]} 32. Nxc5 {[%emt 0:00:41]} Rxc5 {[%emt 0:00:07]} 33. Nb3 {[%emt 0:03:03]} R5c7 {[%emt 0:00:51]} 34. Nxa5 {[%emt 0:00:39]} d4 {[%emt 0:00:59]} 35. Rcd1 {[%emt 0:02:27]} Nf5 {[%emt 0:01:18]} 36. g4 {[%emt 0:02:21]} Ne3+ {[%emt 0:00:25]} 37. Rxe3 {[%emt 0:00:08]} dxe3 {[%emt 0:00:07]} 38. Kf1 {[%emt 0:00:57]} Kf8 {[%emt 0:13:47]} 39. Nb3 {[%emt 0:01:02]} Ke7 {[%emt 0:01:15]} 40. Ke2 {[%emt 0:01:10]} Rh8 {[%emt 0:03:13]} 41. Kxe3 {[%emt 0:00:57]} Rh2 {[%emt 0:00:28]} 42. Rb1 {[%emt 0:01:20]} f6 {[%emt 0:01:43]} 43. Nd4 {[%emt 0:00:32]} Rc5 {[%emt 0:00:38]} 44. Ne2 {[%emt 0:02:24]} e5 {[%emt 0:02:10]} 45. f5 {[%emt 0:01:16]} gxf5 {[%emt 0:01:30]} 46. gxf5 {[%emt 0:00:09]} Rd5 {[%emt 0:03:58]} 47. b4 {[%emt 0:02:02]} Rd8 {[%emt 0:00:39]} 48. Ra1 {[%emt 0:02:39]} Rg8 {[%emt 0:02:25]} 49. c4 {[%emt 0:03:04]} bxc4 {[%emt 0:01:51]} 50. Rc1 {[%emt 0:00:56]} Rgg2 {[%emt 0:00:29]} 51. Rc2 {[%emt 0:00:21]} Rh4 {[%emt 0:03:19]} 52. Rc1 {[%emt 0:01:53]} Kd6 {[%emt 0:00:52]} 53. Nc3 {[%emt 0:00:34]} Rd4 {[%emt 0:00:45]} 54. Ne4+ {[%emt 0:00:34]} Ke7 {[%emt 0:00:22]} 55. Rc3 {[%emt 0:00:52]} Rb2 {[%emt 0:00:34]} 56. Nc5 {[%emt 0:00:57]} Kf7 {[%emt 0:00:42]} 57. Ne4 {[%emt 0:01:01]} Rb3 {[%emt 0:00:28]} 58. Rxb3 {[%emt 0:00:26]} cxb3 {[%emt 0:00:07]} 59. Nc3 {[%emt 0:00:26]} b2 {[%emt 0:00:13]} 60. b5 {[%emt 0:00:33]} Rc4 {[%emt 0:00:29]} 61. Nb1 {[%emt 0:00:22]} Rc1 {[%emt 0:00:17]} 0-1

[Event "19th IPCA WCC 2019"]
[Site "Ruzomberok"]
[Date "2019.07.04"]
[Round "7.5"]
[White "Lipilin, Ilia"]
[Black "Gurbanov, Andrei"]
[Result "0-1"]
[ECO "D31"]
[WhiteElo "2084"]
[BlackElo "2300"]
[Annotator "NA"]
[PlyCount "142"]
[EventDate "2019.06.28"]
[EventType "swiss"]
[EventCountry "SVK"]
[SourceTitle "playchess.com"]
[Source "ChessBase"]
[SourceQuality "1"]
[TimeControl "5400+30"]

1. c4 {[%emt 0:00:00]} e6 {[%emt 0:02:45]} 2. Nc3 {[%emt 0:00:00]} d5 {[%emt 0:00:03]} 3. d4 {[%emt 0:00:00]} a6 {[%emt 0:00:03]} 4. cxd5 {[%emt 0:00:25]} exd5 {[%emt 0:00:05]} 5. Bf4 {[%emt 0:01:27]} c6 {[%emt 0:00:03]} 6. e3 {[%emt 0:00:10]} Bd6 {[%emt 0:00:04]} 7. Bxd6 {[%emt 0:00:11]} Qxd6 {[%emt 0:00:02]} 8. Bd3 {[%emt 0:00:16]} Nf6 {[%emt 0:00:37]} 9. Nge2 {[%emt 0:00:22]} O-O {[%emt 0:00:07]} 10. Qc2 {[%emt 0:00:47]} Re8 {[%emt 0:00:07]} 11. h3 {[%emt 0:00:49]} Nbd7 {[%emt 0:00:18]} 12. O-O {[%emt 0:00:35]} Nf8 {[%emt 0:00:22]} 13. Na4 {[%emt 0:01:45]} Ne4 {[%emt 0:00:26]} 14. Bxe4 {[%emt 0:01:07]} dxe4 {[%emt 0:00:19]} 15. Qc5 {[%emt 0:01:15]} Qh6 {[%emt 0:01:20]} 16. Ng3 {[%emt 0:01:09]} Be6 {[%emt 0:11:48]} 17. Qh5 {[%emt 0:03:06]} Qxh5 {[%emt 0:03:04]} 18. Nxh5 {[%emt 0:00:03]} Rad8 {[%emt 0:00:28]} 19. Rfc1 {[%emt 0:02:06]} f5 {[%emt 0:00:32]} 20. Nb6 {[%emt 0:03:38]} Re7 {[%emt 0:02:34]} 21. Rc5 {[%emt 0:03:09]} Bf7 {[%emt 0:03:56]} 22. Nf4 {[%emt 0:04:08]} g5 {[%emt 0:01:10]} 23. Ne2 Be6 {[%emt 0:00:26]} 24. a3 {[%emt 0:02:52]} Kg7 {[%emt 0:00:28]} 25. Rd1 {[%emt 0:02:04]} Ng6 {[%emt 0:00:30]} 26. Nc3 {[%emt 0:00:40]} Bb3 {[%emt 0:01:03]} 27. Rd2 {[%emt 0:03:10]} Kf6 {[%emt 0:06:41]} 28. Kf1 {[%emt 0:07:22]} h5 {[%emt 0:03:50]} 29. Ke1 {[%emt 0:00:39]} Nh4 {[%emt 0:00:20]} 30. Kf1 {[%emt 0:00:20]} g4 {[%emt 0:01:41]} 31. hxg4 {[%emt 0:00:35]} hxg4 {[%emt 0:00:03]} 32. Ne2 {[%emt 0:00:37]} Rh7 {[%emt 0:02:21]} 33. Ng3 {[%emt 0:02:09]} Be6 {[%emt 0:00:16]} 34. b4 {[%emt 0:14:44]} Ng6 {[%emt 0:02:28]} 35. a4 {[%emt 0:02:04]} Ne7 {[%emt 0:00:25]} 36. Rb2 {[%emt 0:01:35]} Nd5 {[%emt 0:05:24]} 37. Nxd5+ {[%emt 0:03:17]} Bxd5 {[%emt 0:00:03]} 38. Rb1 {[%emt 0:08:01]} Rdh8 {[%emt 0:00:23]} 39. Ke2 {[%emt 0:01:06]} Rh2 {[%emt 0:00:51]} 40. Rg1 {[%emt 0:00:17]} b6 {[%emt 0:00:54]} 41. Rcc1 {[%emt 0:00:12]} Kg5 {[%emt 0:00:22]} 42. Kd2 {[%emt 0:07:07]} Ra8 {[%emt 0:03:46]} 43. Ne2 {[%emt 0:05:06]} a5 {[%emt 0:00:10]} 44. Kc3 {[%emt 0:02:38]} b5 {[%emt 0:05:37]} 45. axb5 {[%emt 0:01:41]} cxb5 {[%emt 0:00:05]} 46. bxa5 {[%emt 0:00:53]} Rxa5 {[%emt 0:00:57]} 47. Nf4 {[%emt 0:00:31]} Ra3+ {[%emt 0:02:37]} 48. Kb4 {[%emt 0:00:49]} Rb3+ {[%emt 0:00:05]} 49. Ka5 {[%emt 0:00:26]} Bc4 {[%emt 0:00:16]} 50. Kb6 {[%emt 0:03:32]} g3 {[%emt 0:00:29]} 51. fxg3 {[%emt 0:00:54]} Rxe3 {[%emt 0:00:04]} 52. d5 {[%emt 0:01:34]} Rh6+ {[%emt 0:00:45]} 53. Kc5 {[%emt 0:00:40]} Rxg3 {[%emt 0:00:18]} 54. Ne6+ {[%emt 0:00:08]} Kf6 {[%emt 0:00:17]} 55. Nd4 {[%emt 0:00:35]} Ke5 {[%emt 0:01:08]} 56. Nc6+ {[%emt 0:00:16]} Kf4 {[%emt 0:00:23]} 57. Nd4 {[%emt 0:00:50]} Rg8 {[%emt 0:01:09]} 58. Nc6 {[%emt 0:02:46]} e3 {[%emt 0:02:22]} 59. d6 {[%emt 0:02:36]} Rc8 {[%emt 0:02:27]} 60. Rh1 {[%emt 0:01:25]} Re6 {[%emt 0:03:19]} 61. Rh4+ {[%emt 0:06:37]} Kg3 {[%emt 0:00:13]} 62. Rd4 {[%emt 0:00:09]} e2 {[%emt 0:00:31]} 63. Kb6 {[%emt 0:00:06]} Kxg2 {[%emt 0:03:42]} 64. Kb7 {[%emt 0:00:13]} Rh8 {[%emt 0:02:24]} 65. d7 {[%emt 0:00:47]} e1=Q {[%emt 0:00:10]} 66. Rxe1 {[%emt 0:00:26]} Rxe1 {[%emt 0:00:05]} 67. Kb6 {[%emt 0:01:03]} Kg3 {[%emt 0:00:28]} 68. d8=Q {[%emt 0:00:45]} Rxd8 {[%emt 0:00:06]} 69. Rxd8 {[%emt 0:00:15]} f4 {[%emt 0:00:20]} 70. Nd4 {[%emt 0:00:08]} f3 {[%emt 0:00:22]} 71. Rg8+ {[%emt 0:01:43]} Bxg8 {[%emt 0:00:12]} 0-1

[Event "19th IPCA WCC 2019"]
[Site "Ruzomberok"]
[Date "2019.07.04"]
[Round "7.6"]
[White "Juvan, Jaka"]
[Black "Palin, Denis"]
[Result "0-1"]
[ECO "C10"]
[WhiteElo "2168"]
[BlackElo "2180"]
[Annotator "NA"]
[PlyCount "112"]
[EventDate "2019.06.28"]
[EventType "swiss"]
[EventCountry "SVK"]
[SourceTitle "playchess.com"]
[Source "ChessBase"]
[SourceQuality "1"]
[TimeControl "5400+30"]

1. e4 {[%emt 0:00:00]} e6 {[%emt 0:03:26]} 2. d4 {[%emt 0:00:00]} d5 {[%emt 0:00:19]} 3. Nd2 {[%emt 0:00:00]} dxe4 {[%emt 0:00:03]} 4. Nxe4 {[%emt 0:00:00]} Nd7 {[%emt 0:00:04]} 5. Nf3 {[%emt 0:00:12]} Ngf6 {[%emt 0:00:04]} 6. Nxf6+ {[%emt 0:00:08]} Nxf6 {[%emt 0:00:04]} 7. c3 {[%emt 0:00:08]} Be7 {[%emt 0:01:13]} 8. Bd3 {[%emt 0:01:14]} O-O {[%emt 0:00:47]} 9. Qc2 {[%emt 0:01:05]} b6 {[%emt 0:04:37]} 10. Bf4 {[%emt 0:09:30]} Bb7 {[%emt 0:07:04]} 11. Qe2 {[%emt 0:09:29]} c5 {[%emt 0:07:44]} 12. dxc5 {[%emt 0:09:13]} Bxc5 {[%emt 0:00:18]} 13. Rd1 {[%emt 0:00:45]} Qc8 {[%emt 0:03:52]} 14. O-O {[%emt 0:00:26]} Qc6 {[%emt 0:01:22]} 15. Bb5 {[%emt 0:02:40]} Qe4 {[%emt 0:01:45]} 16. Qxe4 {[%emt 0:00:56]} Bxe4 {[%emt 0:01:31]} 17. Nd2 {[%emt 0:04:12]} Bb7 {[%emt 0:06:31]} 18. Nb3 {[%emt 0:03:48]} Be7 {[%emt 0:00:27]} 19. Nd4 {[%emt 0:07:03]} Rac8 {[%emt 0:02:22]} 20. a4 {[%emt 0:01:56]} Rfd8 {[%emt 0:02:56]} 21. a5 {[%emt 0:06:30]} bxa5 {[%emt 0:13:18]} 22. Nb3 {[%emt 0:08:00]} Bd5 {[%emt 0:01:36]} 23. Nxa5 {[%emt 0:08:47]} Rc5 {[%emt 0:00:08]} 24. c4 {[%emt 0:00:21]} Bxc4 {[%emt 0:03:23]} 25. Bxc4 {[%emt 0:03:55]} Rxd1 {[%emt 0:02:16]} 26. Rxd1 {[%emt 0:00:06]} Rxa5 {[%emt 0:00:02]} 27. Bd2 {[%emt 0:02:35]} Rc5 {[%emt 0:01:16]} 28. b3 {[%emt 0:00:44]} a5 {[%emt 0:03:04]} 29. Bc3 {[%emt 0:05:03]} Nd5 {[%emt 0:02:47]} 30. Bd4 {[%emt 0:00:23]} Rc6 {[%emt 0:02:44]} 31. h4 {[%emt 0:00:55]} Bxh4 {[%emt 0:00:34]} 32. Bb5 {[%emt 0:05:53]} Rc8 {[%emt 0:02:26]} 33. Ba6 {[%emt 0:00:59]} Rd8 {[%emt 0:04:11]} 34. Bc5 {[%emt 0:01:27]} Bf6 {[%emt 0:01:53]} 35. Bb7 {[%emt 0:02:49]} Nc3 {[%emt 0:01:01]} 36. Rxd8+ {[%emt 0:00:28]} Bxd8 {[%emt 0:00:01]} 37. Bc6 {[%emt 0:00:38]} f5 {[%emt 0:00:56]} 38. Kf1 {[%emt 0:00:40]} Kf7 {[%emt 0:03:49]} 39. Bd4 {[%emt 0:00:40]} Nd5 {[%emt 0:00:24]} 40. Ke2 {[%emt 0:00:54]} g5 {[%emt 0:00:24]} 41. g3 {[%emt 0:02:04]} h5 {[%emt 0:00:21]} 42. Kf3 {[%emt 0:01:20]} Bc7 {[%emt 0:01:21]} 43. Be3 {[%emt 0:02:01]} f4 {[%emt 0:05:14]} 44. gxf4 {[%emt 0:00:37]} Bxf4 {[%emt 0:00:17]} 45. Bd4 {[%emt 0:00:01]} Bc7 {[%emt 0:00:44]} 46. Kg2 {[%emt 0:01:22]} g4 {[%emt 0:00:47]} 47. Bc5 {[%emt 0:00:56]} h4 {[%emt 0:00:21]} 48. Bd4 {[%emt 0:00:15]} Kg6 {[%emt 0:01:30]} 49. Bb5 {[%emt 0:00:28]} h3+ {[%emt 0:01:45]} 50. Kh1 {[%emt 0:00:14]} Bb6 {[%emt 0:00:10]} 51. Bxb6 {[%emt 0:01:06]} Nxb6 {[%emt 0:00:01]} 52. Kh2 {[%emt 0:00:02]} Kg5 {[%emt 0:00:45]} 53. Kg3 {[%emt 0:00:32]} Nd5 {[%emt 0:00:31]} 54. Be2 {[%emt 0:00:56]} Nf6 {[%emt 0:01:40]} 55. f3 {[%emt 0:00:30]} Nh5+ {[%emt 0:00:12]} 56. Kh2 {[%emt 0:00:20]} g3+ {[%emt 0:00:05]} 0-1